bitfinex/quotes_SOLUSD_20250728
["timestamp","ask_amount","ask_price","bid_price","bid_amount"]
[1753697492835,11.86838168,193.06,193.05,32.44327678]
[1753697493514,11.86838168,193.06,193.05,31.78327678]
[1753697494226,12.58838168,193.06,193.05,31.78327678]
[1753697494420,48.90838168,193.06,193.05,31.78327678]
[1753697494832,54.08811854,193.06,193.05,26.0]
[1753697495047,54.08811854,193.06,193.03,5.78327678]
[1753697495356,0.72,193.05,193.03,5.78327678]
[1753697495724,0.72,193.05,193.04,5.78327678]
[1753697496050,5.90000518,193.05,193.04,5.78327678]
[1753697496256,5.90000518,193.05,193.03,5.78327678]
[1753697496453,0.72,193.04,193.03,5.78327678]
[1753697497320,5.90027351,193.04,193.03,5.78327678]
[1753697497526,5.90027351,193.04,193.02,0.06]
[1753697497746,37.04,193.03,193.02,0.06]
[1753697499325,42.22054188,193.03,193.02,0.06]
[1753697503229,41.50054188,193.03,193.02,0.06]
[1753697503434,36.32,193.03,193.02,5.84327678]
[1753697504548,41.50054188,193.03,193.02,5.84327678]
[1753697504737,41.50054188,193.03,193.02,0.06]
[1753697505050,42.22054188,193.03,193.02,0.06]
[1753697505772,37.04,193.03,193.02,0.06]
[1753697506562,42.22054188,193.03,193.02,0.06]
[1753697508648,36.32,193.03,193.02,0.06]
[1753697508850,41.50054188,193.03,193.02,0.06]
[1753697509558,36.32,193.03,193.02,0.06]
[1753697510963,42.22054188,193.03,193.02,0.06]
[1753697512166,48.00381866,193.03,193.02,0.06]
[1753697512335,42.22054188,193.03,193.02,0.06]
[1753697513176,44.92457309,193.03,193.02,0.06]
[1753697513537,50.70784987,193.03,193.02,0.06]
[1753697514068,44.92457309,193.03,193.02,0.06]
[1753697516648,50.70784987,193.03,193.02,0.06]
[1753697517460,54.19725353,193.03,193.02,0.06]
[1753697518758,70.9819375,193.03,193.02,1e-08]
[1753697519962,71.29626064,193.03,193.02,1e-08]
[1753697520548,75.17007355,193.03,193.02,1e-08]
[1753697521468,101.17007355,193.03,193.02,1e-08]
[1753697521978,42.78468397,192.99,192.98,1e-08]
[1753697522142,85.17228389,192.99,192.98,1e-08]
[1753697522465,85.89228389,192.99,192.98,1e-08]
[1753697522653,89.37723859,192.99,192.98,1e-08]
[1753697523948,91.07389951,192.99,192.98,1e-08]
[1753697525146,95.24311583,192.99,192.98,1e-08]
[1753697525350,0.28432314,192.98,192.95,1e-08]
[1753697525550,22.85228389,192.96,192.95,1e-08]
[1753697526072,28.03470511,192.96,192.95,1e-08]
[1753697526265,28.75470511,192.96,192.95,1e-08]
[1753697527143,65.09470511,192.96,192.95,1e-08]
[1753697533477,67.8000925,192.96,192.95,1e-08]
[1753697533881,93.8000925,192.96,192.94,1e-08]
[1753697534081,6.78759992,192.95,192.94,1e-08]
[1753697536566,16.78468397,192.94,192.91,0.2]
[1753697536766,5.78327678,192.92,192.91,0.2]
[1753697538503,36.34,192.93,192.91,0.2]
[1753697538798,10.96677252,192.92,192.91,0.2]
[1753697540198,10.96677252,192.92,192.91,0.87]
[1753697540707,5.18349574,192.92,192.91,0.87]
[1753697541577,36.34,192.92,192.91,6.65327678]
[1753697541976,36.34,192.92,192.91,0.87]
[1753697543472,41.52349574,192.92,192.91,0.87]
[1753697547515,5.18295843,192.94,192.91,0.87]
[1753697547685,36.34,192.93,192.92,0.67]
[1753697547890,0.03,192.95,192.92,13.06747678]
[1753697548107,36.34,192.94,192.93,0.67]
[1753697549120,36.34,192.94,192.93,6.45327678]
[1753697550224,36.37,192.95,192.93,6.45327678]
[1753697550427,36.37,192.95,192.94,5.78327678]
[1753697550596,36.37,192.95,192.94,6.45327678]
[1753697550943,41.55268981,192.95,192.94,0.67]
[1753697551094,41.55268981,192.95,192.92,6.6142]
[1753697551294,41.55268981,192.95,192.92,7.2842]
[1753697551832,41.55268981,192.95,192.92,6.6142]
[1753697552010,41.55268981,192.95,192.92,7.2842]
[1753697552516,41.55268981,192.95,192.93,0.67]
[1753697552714,16.78468397,192.94,192.91,0.2]
[1753697552916,42.12327678,192.93,192.91,0.2]
[1753697553297,42.84327678,192.93,192.91,0.2]
[1753697553500,23.28796075,192.92,192.91,0.2]
[1753697554500,28.47145649,192.92,192.91,0.2]
[1753697561144,27.75145649,192.92,192.91,0.2]
[1753697561350,41.52349574,192.92,192.91,0.87]
[1753697561868,5.18349574,192.92,192.91,0.87]
[1753697562040,41.52349574,192.92,192.91,0.87]
[1753697563161,5.18349574,192.92,192.91,0.87]
[1753697563368,41.52349574,192.92,192.91,0.87]
[1753697563854,36.34,192.92,192.91,6.65327678]
[1753697564075,2.70577543,192.93,192.92,6.2138]
[1753697564381,0.03,192.95,192.93,5.18296586]
[1753697564579,0.03,192.95,192.94,7.36797678]
[1753697564782,2.70424187,192.98,192.96,26.0]
[1753697564964,15.00710059,193.02,192.97,6.45327678]
[1753697565165,15.00710059,193.02,193.01,5.78327678]
[1753697565364,51.34710059,193.02,193.01,6.45327678]
[1753697565570,54.05071583,193.02,193.01,6.45327678]
[1753697565880,54.05071583,193.02,192.99,6.45327678]
[1753697566076,59.9515261,193.02,192.98,5.78327678]
[1753697566257,59.2315261,193.02,192.99,6.45327678]
[1753697566457,59.2315261,193.02,193.0,0.67]
[1753697566658,59.2315261,193.02,193.01,0.67]
[1753697567178,59.2315261,193.02,192.99,5.78327678]
[1753697567179,59.2315261,193.02,192.99,6.45327678]
[1753697567479,54.05071583,193.02,193.01,5.78327678]
[1753697567677,54.05071583,193.02,193.01,6.45327678]
[1753697568078,59.2315261,193.02,193.01,0.67]
[1753697568866,59.2315261,193.02,193.0,5.78327678]
[1753697569068,59.2315261,193.02,193.0,6.46327678]
[1753697570359,59.2315261,193.02,193.01,0.68]
[1753697570561,59.2315261,193.02,193.0,5.78327678]
[1753697570762,59.2315261,193.02,193.0,6.46327678]
[1753697571093,59.2315261,193.02,193.01,6.46327678]
[1753697571284,59.2315261,193.02,193.0,5.78327678]
[1753697571596,59.2315261,193.02,193.0,0.68]
[1753697571789,59.8915261,193.02,192.99,5.78327678]
[1753697572162,59.2315261,193.02,192.99,5.78327678]
[1753697572361,59.2315261,193.02,192.99,6.46327678]
[1753697572556,59.2315261,193.02,193.0,6.46327678]
[1753697572780,59.2315261,193.02,193.01,0.68]
[1753697572985,59.2315261,193.02,193.0,5.78327678]
[1753697573195,59.2315261,193.02,193.0,6.46327678]
[1753697575287,59.2315261,193.02,192.98,26.68]
[1753697575483,59.2315261,193.02,192.99,6.46327678]
[1753697577278,59.2315261,193.02,193.0,5.78327678]
[1753697578193,59.2315261,193.02,193.01,5.78327678]
[1753697580274,59.2315261,193.02,193.0,5.78327678]
[1753697580686,0.66,193.01,193.0,5.78327678]
[1753697581004,0.66,193.01,192.96,6.46327678]
[1753697581167,36.32,193.0,192.97,5.78327678]
[1753697581782,36.98,193.0,192.97,5.78327678]
[1753697581983,0.66,192.99,192.97,5.78327678]
[1753697582199,0.66,192.99,192.94,2.2647]
[1753697582200,36.32,192.98,192.95,0.68]
[1753697582376,5.8410787,193.01,192.97,5.78327678]
[1753697582700,36.32,193.0,192.98,5.78327678]
[1753697583273,36.98,193.0,192.98,5.78327678]
[1753697583484,36.98,193.0,192.97,5.78327678]
[1753697584286,5.18161562,192.99,192.97,5.78327678]
[1753697584597,36.32,192.98,192.97,5.78327678]
[1753697585002,36.32,192.98,192.97,6.46327678]
[1753697585808,39.02420767,192.98,192.97,6.46327678]
[1753697587421,0.03,193.01,192.97,6.46327678]
[1753697587726,39.05363317,193.01,193.0,5.78327678]
[1753697588019,39.05363317,193.01,193.0,6.46327678]
[1753697588386,39.05363317,193.01,193.0,5.78327678]
[1753697588592,44.23471187,193.01,192.99,5.78327678]
[1753697588794,44.89471187,193.01,192.99,5.78327678]
[1753697589912,44.23471187,193.01,192.99,5.78327678]
[1753697591911,44.23471187,193.01,192.98,5.78327678]
[1753697592086,44.23471187,193.01,192.98,6.46327678]
[1753697592507,44.23471187,193.01,192.99,5.78327678]
[1753697595845,0.66,193.0,192.99,5.78327678]
[1753697596031,44.23471187,193.01,192.98,5.78327678]
[1753697596346,44.89471187,193.01,192.98,5.78327678]
[1753697596546,0.66,193.0,192.95,5.84327678]
[1753697596852,5.78327678,192.98,192.95,0.06]
[1753697597050,5.78327678,192.96,192.95,0.06]
[1753697597213,42.74327678,192.96,192.95,0.06]
[1753697598026,47.925698,192.96,192.95,0.06]
[1753697598242,64.71038197,192.96,192.95,0.06]
[1753697598558,64.99470511,192.96,192.95,1e-08]
[1753697603654,42.78468397,192.92,192.89,0.06]
[1753697603858,27.75199392,192.9,192.89,0.06]
[1753697604464,28.41199392,192.9,192.89,0.06]
[1753697607059,28.41199392,192.9,192.87,0.2]
[1753697607060,42.78468397,192.88,192.87,0.2]
[1753697607258,84.88796075,192.88,192.87,0.2]
[1753697607563,85.54796075,192.88,192.87,0.2]
[1753697607969,91.0168546,192.88,192.87,1e-08]
[1753697608166,57.40351721,192.88,192.87,1e-08]
[1753697608468,93.72351721,192.88,192.87,1e-08]
[1753697608979,96.33632994,192.88,192.87,1e-08]
[1753697609182,17.06900711,192.87,192.83,0.06]
[1753697609480,17.06900711,192.83,192.74,0.72]
[1753697609687,5.78327678,192.77,192.74,0.72]
[1753697609884,36.32,192.76,192.75,0.82]
[1753697610069,41.50779829,192.76,192.75,0.82]
[1753697610887,47.29107507,192.76,192.75,0.82]
[1753697611685,42.10327678,192.76,192.75,0.82]
[1753697612054,47.29107507,192.76,192.75,0.1]
[1753697612662,47.29107507,192.76,192.75,0.82]
[1753697612870,5.78327678,192.77,192.75,0.82]
[1753697613053,5.78327678,192.82,192.76,5.78327678]
[1753697613254,36.32,192.81,192.77,6.50327678]
[1753697613457,36.32,192.81,192.78,0.72]
[1753697613658,41.50663653,192.81,192.78,0.72]
[1753697613855,41.50663653,192.81,192.79,0.72]
[1753697614064,36.32,192.81,192.8,0.72]
[1753697614770,16.78468397,192.82,192.8,0.72]
[1753697614993,12.96377619,192.85,192.8,0.72]
[1753697614994,36.32,192.81,192.8,0.72]
[1753697615593,41.50645298,192.81,192.8,0.72]
[1753697615788,5.18645298,192.81,192.77,5.78327678]
[1753697615990,36.32,192.8,192.78,0.72]
[1753697616509,36.32,192.8,192.79,0.72]
[1753697618092,21.9703301,192.84,192.79,6.50327678]
[1753697618398,36.34,192.83,192.8,6.50327678]
[1753697618607,36.34,192.83,192.81,0.72]
[1753697618794,36.34,192.83,192.82,0.72]
[1753697619010,5.18564613,192.84,192.82,0.72]
[1753697619216,36.34,192.83,192.82,0.72]
[1753697619589,36.34,192.83,192.79,5.78327678]
[1753697619786,41.52603738,192.83,192.8,0.72]
[1753697620918,42.18603738,192.83,192.78,6.50327678]
[1753697621288,41.52603738,192.83,192.79,6.50327678]
[1753697621490,41.52603738,192.83,192.8,0.72]
[1753697622228,42.18603738,192.83,192.79,5.78327678]
[1753697622444,42.18603738,192.83,192.78,6.50327678]
[1753697622816,42.18603738,192.83,192.79,0.72]
[1753697623918,42.18603738,192.83,192.79,6.50327678]
[1753697624126,41.52603738,192.83,192.8,6.50327678]
[1753697624445,41.52603738,192.83,192.81,0.72]
[1753697624938,41.52603738,192.83,192.8,5.78327678]
[1753697625236,41.52603738,192.83,192.8,0.72]
[1753697625439,42.18603738,192.83,192.79,5.78327678]
[1753697625610,42.18603738,192.83,192.79,6.50327678]
[1753697626015,42.18603738,192.83,192.79,0.72]
[1753697627736,42.18603738,192.83,192.79,5.78327678]
[1753697627938,42.18603738,192.83,192.79,6.50327678]
[1753697628323,2.70700907,192.82,192.79,6.50327678]
[1753697628518,36.34,192.81,192.79,6.50327678]
[1753697629147,36.34,192.81,192.8,0.69]
[1753697629448,36.34,192.81,192.79,5.78327678]
[1753697629613,36.34,192.81,192.79,6.47327678]
[1753697630746,36.34,192.81,192.8,0.69]
[1753697630948,36.34,192.81,192.8,6.47327678]
[1753697632233,36.34,192.81,192.79,5.78327678]
[1753697632438,36.34,192.81,192.78,5.78327678]
[1753697632638,36.34,192.81,192.79,5.78327678]
[1753697632937,36.34,192.81,192.8,5.78327678]
[1753697633162,36.34,192.81,192.8,6.47327678]
[1753697633534,36.34,192.81,192.8,5.78327678]
[1753697633958,36.34,192.81,192.76,31.18771556]
[1753697634155,36.34,192.81,192.8,5.78327678]
[1753697634542,36.34,192.81,192.8,6.47327678]
[1753697636957,36.34,192.81,192.8,5.78327678]
[1753697638261,36.34,192.81,192.8,6.47327678]
[1753697639155,36.34,192.81,192.8,5.78327678]
[1753697640775,41.52645298,192.81,192.8,5.78327678]
[1753697640973,42.22645298,192.81,192.79,5.78327678]
[1753697641363,42.22645298,192.81,192.78,6.1956]
[1753697641562,42.22645298,192.81,192.79,5.78327678]
[1753697642578,0.7,192.8,192.78,5.78327678]
[1753697642745,37.02,192.79,192.77,31.78327678]
[1753697642948,37.02,192.79,192.77,5.78327678]
[1753697643145,37.02,192.79,192.76,0.69]
[1753697643146,36.32,192.79,192.76,5.78327678]
[1753697643372,0.7,192.78,192.76,5.78327678]
[1753697643577,36.32,192.77,192.76,5.78327678]
[1753697643749,36.32,192.77,192.75,5.88327678]
[1753697643949,36.32,192.77,192.75,0.1]
[1753697644167,0.7,192.76,192.75,0.1]
[1753697645388,41.50767074,192.77,192.75,0.1]
[1753697645879,41.50767074,192.77,192.75,5.88327678]
[1753697646196,36.32,192.77,192.75,5.88327678]
[1753697646687,0.7,192.76,192.75,0.1]
[1753697647810,5.88779829,192.76,192.75,0.1]
[1753697648673,8.59542547,192.76,192.75,0.1]
[1753697650676,7.89542547,192.76,192.75,0.1]
[1753697652882,8.59542547,192.76,192.75,0.1]
[1753697657206,7.89542547,192.76,192.75,0.1]
[1753697657502,8.59542547,192.76,192.75,0.1]
[1753697658680,31.16338622,192.76,192.75,0.1]
[1753697661092,67.48338622,192.76,192.75,0.1]
[1753697662690,25.38010944,192.76,192.75,0.1]
[1753697662889,44.21542547,192.76,192.75,0.78]
[1753697663110,44.21542547,192.76,192.75,0.1]
[1753697663306,44.93542547,192.76,192.75,0.1]
[1753697664133,44.21542547,192.76,192.75,0.1]
[1753697664419,44.21542547,192.76,192.75,0.78]
[1753697664924,44.21542547,192.76,192.75,0.1]
[1753697666618,44.21542547,192.76,192.73,6.06327678]
[1753697667923,44.21542547,192.76,192.71,0.1]
[1753697667924,0.72,192.75,192.71,5.88327678]
[1753697668127,37.04,192.74,192.71,5.88327678]
[1753697668622,37.04,192.74,192.71,0.1]
[1753697668922,2.70803045,192.73,192.71,0.1]
[1753697669126,36.32,192.72,192.71,0.1]
[1753697669631,41.50887505,192.72,192.71,0.1]
[1753697669835,42.22887505,192.72,192.71,0.1]
[1753697672001,41.50887505,192.72,192.71,0.1]
[1753697672431,2.70803045,192.73,192.71,0.1]
[1753697672609,2.70803045,192.73,192.72,5.78327678]
[1753697672810,39.02803045,192.73,192.72,6.46327678]
[1753697674030,39.02803045,192.73,192.72,0.68]
[1753697674202,2.70803045,192.73,192.72,6.46327678]
[1753697674405,2.70803045,192.73,192.72,0.68]
[1753697674707,2.70803045,192.73,192.72,6.46327678]
[1753697674907,36.32,192.73,192.72,6.46327678]
[1753697675118,36.32,192.74,192.72,6.46327678]
[1753697675322,36.32,192.74,192.73,6.46327678]
[1753697676709,2.70760654,192.75,192.73,6.46327678]
[1753697676906,2.70760654,192.75,192.74,6.46327678]
[1753697677115,36.32,192.77,192.74,6.46327678]
[1753697677322,36.32,192.77,192.76,5.78327678]
[1753697677617,36.32,192.77,192.76,6.46327678]
[1753697679535,37.04,192.77,192.76,5.78327678]
[1753697680748,42.22752917,192.77,192.73,5.78327678]
[1753697681036,0.72,192.76,192.72,5.84327678]
[1753697681215,36.32,192.75,192.73,5.78327678]
[1753697681709,0.72,192.74,192.72,0.06]
[1753697681909,36.32,192.73,192.72,0.06]
[1753697682108,37.04,192.73,192.72,0.06]
[1753697682742,36.32,192.73,192.72,6.52327678]
[1753697683351,36.32,192.73,192.72,5.84327678]
[1753697684044,5.18726008,192.78,192.72,6.52327678]
[1753697684250,36.32,192.77,192.75,5.78327678]
[1753697684632,39.02751241,192.77,192.75,5.78327678]
[1753697685431,44.21507768,192.77,192.75,5.78327678]
[1753697685632,44.21507768,192.77,192.74,5.78327678]
[1753697685843,0.72,192.76,192.74,5.78327678]
[1753697686044,36.32,192.75,192.74,5.78327678]
[1753697686340,37.04,192.75,192.72,5.84327678]
[1753697686543,36.32,192.75,192.74,5.78327678]
[1753697686746,36.3,192.75,192.74,5.78327678]
[1753697687046,36.3,192.75,192.74,6.46327678]
[1753697687230,36.3,192.75,192.74,5.78327678]
[1753697689031,37.0,192.75,192.74,5.78327678]
[1753697689233,37.0,192.75,192.72,0.06]
[1753697689234,42.18806744,192.75,192.72,5.84327678]
[1753697689439,0.7,192.74,192.72,5.84327678]
[1753697689750,36.3,192.73,192.72,5.84327678]
[1753697690648,36.3,192.73,192.72,6.52327678]
[1753697691936,36.3,192.73,192.72,5.84327678]
[1753697692634,42.18860582,192.73,192.72,0.06]
[1753697693237,47.9718826,192.73,192.72,0.06]
[1753697694231,42.18860582,192.73,192.72,0.06]
[1753697695056,47.9718826,192.73,192.72,0.06]
[1753697698649,11.6718826,192.73,192.72,0.06]
[1753697698854,47.9718826,192.73,192.72,0.06]
[1753697700645,11.6718826,192.73,192.72,0.06]
[1753697700833,42.18860582,192.73,192.72,0.06]
[1753697701036,41.48860582,192.73,192.72,0.06]
[1753697701282,42.18860582,192.73,192.72,0.06]
[1753697702661,47.9718826,192.73,192.72,0.06]
[1753697703440,64.75656657,192.73,192.72,0.06]
[1753697704663,28.45656657,192.73,192.72,0.06]
[1753697704843,67.46507927,192.73,192.72,0.06]
[1753697705578,31.16507927,192.73,192.72,0.06]
[1753697705784,67.46507927,192.73,192.72,0.06]
[1753697706091,25.38180249,192.73,192.72,0.06]
[1753697706292,67.46507927,192.73,192.72,0.06]
[1753697707193,31.16507927,192.73,192.72,0.06]
[1753697707394,67.46507927,192.73,192.72,0.06]
[1753697709494,7.89711852,192.73,192.72,0.06]
[1753697709867,44.19711852,192.73,192.72,0.06]
[1753697710565,50.6803953,192.73,192.72,0.06]
[1753697711788,67.46507927,192.73,192.72,0.06]
[1753697712162,16.78468397,192.72,192.71,0.1]
[1753697712368,23.26796075,192.72,192.71,0.1]
[1753697713583,64.7568358,192.72,192.71,0.1]
[1753697713974,28.4568358,192.72,192.71,0.1]
[1753697714376,41.48887505,192.72,192.71,0.78]
[1753697714887,41.48887505,192.72,192.71,0.1]
[1753697717297,42.18887505,192.72,192.71,0.1]
[1753697717805,41.48887505,192.72,192.71,0.1]
[1753697719005,42.20887505,192.72,192.71,0.1]
[1753697719182,47.99215183,192.72,192.71,0.1]
[1753697719380,42.20887505,192.72,192.71,0.1]
[1753697721722,41.48887505,192.72,192.71,0.1]
[1753697724718,47.99215183,192.72,192.71,0.1]
[1753697725019,41.48887505,192.72,192.71,0.1]
[1753697725325,42.20887505,192.72,192.71,0.1]
[1753697725498,41.48887505,192.72,192.71,0.1]
[1753697725906,36.3,192.72,192.71,0.8]
[1753697726315,7.92715905,192.73,192.71,0.1]
[1753697726519,36.3,192.72,192.71,0.8]
[1753697726826,36.3,192.72,192.71,6.58327678]
[1753697728617,2.7385127,192.73,192.71,6.58327678]
[1753697728819,2.7385127,192.73,192.72,6.48327678]
[1753697729027,39.0385127,192.73,192.72,6.48327678]
[1753697730430,2.7385127,192.73,192.72,6.48327678]
[1753697730618,39.0385127,192.73,192.72,6.48327678]
[1753697733239,39.0385127,192.73,192.71,0.1]
[1753697733240,44.94711852,192.73,192.71,0.1]
[1753697733420,0.72,192.72,192.71,0.1]
[1753697733742,23.28796075,192.72,192.71,0.1]
[1753697734118,27.17469262,192.72,192.71,0.1]
[1753697734809,32.36356767,192.72,192.71,0.1]
[1753697735013,16.78468397,192.71,192.68,0.06]
[1753697735229,22.56796075,192.69,192.67,1e-08]
[1753697735417,45.97051962,192.68,192.67,1e-08]
[1753697735617,46.69051962,192.68,192.67,1e-08]
[1753697736236,63.47520359,192.68,192.67,1e-08]
[1753697736746,68.66515584,192.68,192.67,1e-08]
[1753697736922,32.36515584,192.68,192.67,1e-08]
[1753697737330,64.777913,192.68,192.67,1e-08]
[1753697740344,65.06223614,192.68,192.67,1e-08]
[1753697740517,68.94552686,192.68,192.67,1e-08]
[1753697741315,74.07039835,192.68,192.55,6.48327678]
[1753697741527,5.78327678,192.6,192.55,0.7]
[1753697741757,36.3,192.59,192.55,0.7]
[1753697742045,42.80327678,192.59,192.55,0.7]
[1753697742537,0.72,192.58,192.54,8.0038]
[1753697742745,36.3,192.57,192.54,6.352]
[1753697743049,42.80327678,192.57,192.52,31.78327678]
[1753697743243,47.99643698,192.57,192.52,6.48327678]
[1753697743434,47.99643698,192.57,192.52,32.48327678]
[1753697743629,5.78327678,192.56,192.52,26.7]
[1753697743851,36.3,192.55,192.52,26.7]
[1753697744052,36.3,192.55,192.53,0.7]
[1753697744249,10.97598307,192.58,192.54,0.7]
[1753697744444,36.3,192.57,192.54,0.7]
[1753697745265,41.49300032,192.57,192.54,0.7]
[1753697745759,47.2762771,192.57,192.52,32.48327678]
[1753697746057,0.72,192.56,192.52,32.48327678]
[1753697746267,36.3,192.55,192.53,0.7]
[1753697747061,36.3,192.55,192.54,0.7]
[1753697747856,12.97767112,192.64,192.54,11.67694055]
[1753697748059,16.78468397,192.62,192.58,5.78327678]
[1753697748261,36.3,192.61,192.56,0.66]
[1753697748558,36.3,192.61,192.57,5.78327678]
[1753697748867,36.3,192.61,192.57,6.44327678]
[1753697749048,36.3,192.61,192.57,0.66]
[1753697749251,36.3,192.61,192.57,6.44327678]
[1753697749450,41.49192104,192.61,192.57,6.44327678]
[1753697749765,47.94519782,192.61,192.56,5.78327678]
[1753697749948,42.16192104,192.61,192.56,6.44327678]
[1753697750158,42.16192104,192.61,192.57,5.78327678]
[1753697750476,36.3,192.61,192.58,6.44327678]
[1753697750684,16.78468397,192.65,192.6,5.78327678]
[1753697750975,36.3,192.64,192.63,5.78327678]
[1753697751549,30.69169435,192.69,192.63,6.44327678]
[1753697751774,13.23701038,192.69,192.67,5.78327678]
[1753697751960,36.3,192.68,192.67,5.78327678]
[1753697752270,36.97,192.68,192.65,5.78327678]
[1753697752788,0.67,192.67,192.61,26.0]
[1753697752946,5.78327678,192.65,192.59,7.31657678]
[1753697753149,36.97,192.64,192.59,5.78327678]
[1753697753458,36.97,192.64,192.58,11.90067678]
[1753697753459,6.45327678,192.63,192.58,11.90067678]
[1753697753656,36.3,192.62,192.58,11.90067678]
[1753697753855,36.3,192.62,192.61,5.78327678]
[1753697754269,0.67,192.66,192.61,6.44327678]
[1753697754474,36.3,192.65,192.62,6.44327678]
[1753697755462,36.3,192.65,192.62,5.78327678]
[1753697756053,2.70919905,192.64,192.62,5.78327678]
[1753697756373,36.3,192.63,192.62,5.78327678]
[1753697756679,36.3,192.63,192.62,6.44327678]
[1753697756887,36.3,192.63,192.62,11.63484567]
[1753697757062,2.70919905,192.64,192.62,11.63484567]
[1753697757254,36.3,192.65,192.64,26.0]
[1753697757573,36.3,192.67,192.66,26.0]
[1753697757780,36.3,192.67,192.66,32.44327678]
[1753697757961,36.3,192.67,192.66,38.65667678]
[1753697758972,2.70821686,192.68,192.66,38.65667678]
[1753697759162,2.70821686,192.68,192.67,6.44327678]
[1753697761582,2.70821686,192.68,192.67,5.78327678]
[1753697763864,3.37821686,192.68,192.66,5.78327678]
[1753697764061,36.3,192.67,192.66,5.78327678]
[1753697764380,36.97,192.67,192.65,5.78327678]
[1753697764561,36.97,192.67,192.66,5.78327678]
[1753697764880,36.3,192.67,192.66,5.78327678]
[1753697765466,36.97,192.67,192.66,5.78327678]
[1753697765786,36.97,192.67,192.65,5.78327678]
[1753697766682,36.3,192.67,192.66,6.44327678]
[1753697766997,36.3,192.67,192.66,32.44327678]
[1753697767862,36.3,192.67,192.66,37.6337678]
[1753697771389,36.3,192.7,192.66,37.6337678]
[1753697771601,36.3,192.7,192.69,5.78327678]
[1753697771777,36.3,192.7,192.69,6.44327678]
[1753697772092,0.03,192.71,192.69,6.44327678]
[1753697772292,0.03,192.71,192.7,6.44327678]
[1753697773394,0.03,192.71,192.7,11.63269037]
[1753697775108,0.03,192.71,192.7,5.78327678]
[1753697776104,0.7,192.71,192.7,5.78327678]
[1753697776677,0.03,192.71,192.7,5.78327678]
[1753697776975,0.03,192.71,192.7,11.63269037]
[1753697777301,0.03,192.71,192.7,17.41596715]
[1753697777596,0.03,192.71,192.7,11.63269037]
[1753697777995,0.03,192.71,192.7,17.41596715]
[1753697778375,0.03,192.71,192.7,17.70029029]
[1753697779725,0.03,192.71,192.7,11.25701351]
[1753697779889,0.03,192.71,192.7,17.70029029]
[1753697781017,0.03,192.71,192.7,25.32519029]
[1753697783134,0.03,192.71,192.7,130.92881561]
[1753697783340,0.03,192.71,192.7,130.40987426]
[1753697783850,0.03,192.75,192.7,130.40987426]
[1753697783851,0.03,192.75,192.74,0.28432314]
[1753697784075,0.03,192.75,192.74,5.78327678]
[1753697784760,0.03,192.77,192.76,26.0]
[1753697784951,0.03,192.79,192.77,17.06900711]
[1753697785272,0.03,192.8,192.79,0.28432314]
[1753697785438,0.03,192.8,192.79,11.8508767]
[1753697785869,0.03,192.8,192.79,12.5108767]
[1753697786340,0.03,192.8,192.79,17.69786772]
[1753697786540,0.03,192.8,192.79,11.25459094]
[1753697787360,0.03,192.8,192.79,10.9702678]
[1753697787649,0.03,192.8,192.79,31.78327678]
[1753697787851,0.03,192.8,192.79,36.9702678]
[1753697789379,0.03,192.8,192.79,31.78327678]
[1753697789567,0.03,192.8,192.79,36.9702678]
[1753697791170,0.03,192.8,192.79,31.78327678]
[1753697791469,0.7,192.8,192.79,31.78327678]
[1753697792184,0.03,192.8,192.79,31.78327678]
[1753697793385,0.03,192.8,192.79,5.78327678]
[1753697793576,0.7,192.8,192.78,31.78327678]
[1753697793887,0.67,192.79,192.78,31.78327678]
[1753697796151,0.67,192.79,192.77,5.78327678]
[1753697796376,0.67,192.78,192.74,5.78327678]
[1753697796676,5.78327678,192.77,192.72,5.78327678]
[1753697796856,0.67,192.76,192.73,5.78327678]